bitfinex/quotes_BTCUSD_20250313
["timestamp","ask_amount","ask_price","bid_price","bid_amount"]
[1741905801827,0.012301,81292.0,81291.0,0.000338]
[1741905802032,0.01901462,81292.0,81291.0,0.000338]
[1741905802786,0.00671362,81292.0,81291.0,0.000338]
[1741905804935,0.01901462,81292.0,81291.0,0.000338]
[1741905806049,0.25273962,81292.0,81291.0,0.000338]
[1741905808592,0.00671362,81292.0,81291.0,0.000338]
[1741905808794,0.246022,81294.0,81291.0,0.000338]
[1741905808990,0.00671362,81292.0,81291.0,0.000338]
[1741905809195,0.37692331,81295.0,81294.0,0.012301]
[1741905809439,0.37692331,81295.0,81294.0,0.258321]
[1741905809612,0.38363693,81295.0,81294.0,0.258321]
[1741905809796,0.38363693,81295.0,81291.0,0.258668]
[1741905809998,0.38363693,81295.0,81292.0,0.246024]
[1741905812399,0.40291927,81295.0,81292.0,0.246024]
[1741905813018,0.40291927,81295.0,81292.0,0.387104]
[1741905813712,0.40291927,81295.0,81294.0,0.093801]
[1741905814116,0.38363693,81295.0,81294.0,0.093801]
[1741905816723,0.38363693,81295.0,81294.0,0.094801]
[1741905818507,0.40291855,81295.0,81294.0,0.094801]
[1741905823518,0.38363693,81295.0,81294.0,0.094801]
[1741905824954,0.38363693,81295.0,81294.0,0.235841]
[1741905826582,0.40291839,81295.0,81294.0,0.235841]
[1741905827240,0.40291839,81295.0,81294.0,0.21655955]
[1741905829340,0.40291839,81295.0,81294.0,0.26335955]
[1741905830273,0.40291839,81295.0,81294.0,0.26235955]
[1741905830448,0.40291839,81295.0,81294.0,0.26335955]
[1741905830651,0.40291839,81295.0,81294.0,0.26535955]
[1741905830852,0.40291839,81295.0,81294.0,0.26469735]
[1741905831090,0.40308729,81295.0,81294.0,0.26469735]
[1741905831654,0.40308729,81295.0,81294.0,0.26669735]
[1741905832125,0.02616398,81295.0,81294.0,0.56669735]
[1741905832499,0.01945036,81295.0,81294.0,0.56669735]
[1741905832945,0.01945036,81295.0,81294.0,0.5772314]
[1741905833170,0.01945036,81295.0,81294.0,0.5752314]
[1741905833386,0.01945036,81295.0,81294.0,0.5792314]
[1741905833620,0.0001689,81295.0,81294.0,0.5792314]
[1741905834073,0.0001689,81295.0,81294.0,0.5842314]
[1741905836599,0.01944835,81295.0,81294.0,0.5842314]
[1741905837519,0.0001689,81295.0,81294.0,0.26495184]
[1741905838023,0.0001689,81295.0,81294.0,0.26095184]
[1741905839018,0.0001689,81295.0,81294.0,0.25595184]
[1741905839447,0.0001689,81295.0,81294.0,0.26095184]
[1741905840194,0.0001689,81295.0,81294.0,0.28995574]
[1741905840887,0.01944792,81295.0,81294.0,0.28995574]
[1741905841752,8.2e-07,81300.0,81299.0,0.0123]
[1741905841989,8.2e-07,81309.0,81308.0,0.144398]
[1741905842215,8.2e-07,81309.0,81308.0,0.83260571]
[1741905842480,0.37692331,81337.0,81308.0,0.831376]
[1741905842708,0.37692331,81337.0,81336.0,0.258187]
[1741905842925,0.37692331,81337.0,81336.0,0.399187]
[1741905843387,0.0008,81349.0,81348.0,0.258149]
[1741905843653,0.0008,81349.0,81348.0,0.304349]
[1741905844339,0.0008,81349.0,81348.0,0.445349]
[1741905844568,0.0008,81349.0,81348.0,0.399149]
[1741905844792,0.0008,81349.0,81348.0,0.402149]
[1741905845019,0.37692331,81357.0,81350.0,0.012292]
[1741905845020,0.245835,81356.0,81350.0,0.012292]
[1741905845510,0.26510645,81355.0,81350.0,0.012292]
[1741905845752,0.245854,81349.0,81348.0,0.003]
[1741905846238,0.245854,81349.0,81343.0,0.141]
[1741905846463,0.245854,81349.0,81348.0,0.005]
[1741905846661,0.24575255,81349.0,81348.0,0.003]
[1741905846897,0.24586,81347.0,81343.0,0.141]
[1741905848220,0.245866,81346.0,81343.0,0.141]
[1741905848464,0.245887,81338.0,81336.0,0.00041159]
[1741905848726,0.21731776,81337.0,81336.0,0.00041159]
[1741905849421,0.20502376,81337.0,81336.0,0.00041159]
[1741905849647,0.23289376,81338.0,81336.0,0.00041159]
[1741905850124,0.23289376,81338.0,81336.0,0.00341159]
[1741905850323,0.012294,81337.0,81336.0,0.00641159]
[1741905850441,0.012294,81337.0,81336.0,0.00341159]
[1741905850885,0.012294,81337.0,81336.0,0.00641159]
[1741905852127,0.012294,81337.0,81336.0,0.00341159]
[1741905852380,0.012294,81337.0,81336.0,0.00641159]
[1741905852597,0.012294,81337.0,81336.0,0.00341159]
[1741905852755,0.012294,81337.0,81336.0,0.00641159]
[1741905853668,0.21362132,81338.0,81336.0,0.00641159]
[1741905854721,0.4095,81337.0,81336.0,0.00641159]
[1741905855483,0.4096689,81337.0,81336.0,0.00641159]
[1741905855696,0.4096689,81337.0,81336.0,0.00341159]
[1741905856461,0.42894215,81337.0,81336.0,0.00641159]
[1741905856664,0.42894215,81337.0,81336.0,0.00341159]
[1741905856874,0.67483515,81337.0,81331.0,0.23004454]
[1741905857077,0.67483515,81337.0,81336.0,0.003]
[1741905857420,0.67483515,81337.0,81336.0,0.0026]
[1741905858088,0.67483515,81337.0,81336.0,0.0022]
[1741905858295,0.67483515,81337.0,81332.0,0.258198]
[1741905858693,0.42894215,81337.0,81334.0,0.245899]
[1741905858940,0.245893,81336.0,81332.0,0.258198]
[1741905859522,0.245898,81335.0,81332.0,0.003]
[1741905859685,0.258197,81333.0,81332.0,0.003]
[1741905860052,0.312295,81332.0,81331.0,0.00312361]
[1741905860260,0.312295,81332.0,81331.0,0.00012361]
[1741905860674,0.7095,81332.0,81331.0,0.00012361]
[1741905862434,0.4115,81332.0,81331.0,0.00012361]
[1741905862972,0.42380402,81332.0,81331.0,0.00012361]
[1741905864484,0.245908,81331.0,81325.0,0.25034361]
[1741905864682,0.245908,81331.0,81325.0,0.25075528]
[1741905865249,0.245916,81329.0,81325.0,0.23845928]
[1741905865423,0.22014013,81330.0,81325.0,0.00041167]
[1741905865765,0.245916,81329.0,81325.0,0.00041167]
[1741905865972,0.22014013,81330.0,81325.0,0.00041167]
[1741905866627,0.4095,81329.0,81325.0,0.00041167]
[1741905867039,0.42877469,81329.0,81325.0,0.00041167]
[1741905867213,0.67469069,81329.0,81325.0,0.00041167]
[1741905867417,0.655416,81329.0,81323.0,0.22706795]
[1741905867594,0.655416,81329.0,81323.0,0.22719164]
[1741905868438,0.67469078,81329.0,81323.0,0.22719164]
[1741905868647,0.67569078,81329.0,81323.0,0.22719164]
[1741905868941,0.67569078,81329.0,81323.0,0.23948764]
[1741905869186,0.245919,81328.0,81323.0,0.23948764]
[1741905869565,0.43077478,81329.0,81326.0,0.258217]
[1741905869759,0.43077478,81329.0,81327.0,0.258214]
[1741905869973,0.42877478,81329.0,81327.0,0.012296]
[1741905870384,0.001,81328.0,81327.0,0.258214]
[1741905872153,0.42877478,81329.0,81327.0,0.258214]
[1741905872278,0.42977478,81329.0,81327.0,0.258214]
[1741905872684,0.42877478,81329.0,81327.0,0.258214]
[1741905872908,0.001,81328.0,81327.0,0.258214]
[1741905873111,0.42877478,81329.0,81328.0,0.012295]
[1741905873538,0.4105,81329.0,81328.0,0.012295]
[1741905875491,0.4095,81329.0,81328.0,0.012295]
[1741905875695,0.4095,81329.0,81328.0,0.013295]
[1741905876427,0.4095,81329.0,81328.0,0.014295]
[1741905876567,0.42877264,81329.0,81328.0,0.014295]
[1741905876968,0.42877264,81329.0,81328.0,0.013295]
[1741905877400,0.42877264,81329.0,81328.0,0.014295]
[1741905877596,0.42877264,81329.0,81328.0,0.155215]
[1741905877898,0.17994225,81329.0,81328.0,0.155215]
[1741905879123,0.58944225,81329.0,81328.0,0.155215]
[1741905880373,0.58961115,81329.0,81328.0,0.155215]
[1741905883974,0.57033851,81329.0,81328.0,0.155215]
[1741905886835,0.58961141,81329.0,81328.0,0.155215]
[1741905893108,0.58961141,81329.0,81328.0,0.155553]
[1741905894346,0.58961141,81329.0,81328.0,0.014633]
[1741905894547,0.57033851,81329.0,81328.0,0.155513]
[1741905896516,0.57033851,81329.0,81328.0,0.014633]
[1741905896744,0.57033851,81329.0,81328.0,0.155513]
[1741905899074,0.58961127,81329.0,81328.0,0.155513]
[1741905903954,0.57033851,81329.0,81328.0,0.155513]
[1741905906954,0.58961088,81329.0,81328.0,0.155513]
[1741905909228,0.58961088,81329.0,81328.0,0.231313]
[1741905910736,0.58961088,81329.0,81328.0,0.230313]
[1741905911098,0.58961088,81329.0,81328.0,0.236313]
[1741905911438,0.58961088,81329.0,81328.0,0.229313]
[1741905911637,0.58961088,81329.0,81328.0,0.240313]
[1741905912052,0.58961088,81329.0,81328.0,0.234313]
[1741905912595,0.58961088,81329.0,81328.0,0.240313]
[1741905913624,0.58961088,81329.0,81328.0,0.235313]
[1741905913842,0.57033851,81329.0,81328.0,0.235313]
[1741905914042,0.57033851,81329.0,81328.0,0.239313]
[1741905915020,0.57033851,81329.0,81328.0,0.233313]
[1741905915426,0.57033851,81329.0,81328.0,0.238313]
[1741905916910,0.58961043,81329.0,81328.0,0.238313]
[1741905923515,0.57033851,81329.0,81328.0,0.238313]
[1741905924203,0.57033851,81329.0,81328.0,0.162513]
[1741905925630,0.57033851,81329.0,81328.0,0.162473]
[1741905926088,0.57033851,81329.0,81328.0,0.021633]
[1741905926295,0.57033851,81329.0,81328.0,0.162473]
[1741905926967,0.4096689,81329.0,81328.0,0.157473]
[1741905927382,0.4096689,81329.0,81328.0,0.156473]
[1741905927524,0.4096689,81329.0,81328.0,0.159473]
[1741905927728,0.42894182,81329.0,81328.0,0.156473]
[1741905928782,0.42894182,81329.0,81328.0,0.159473]
[1741905932201,0.42894182,81329.0,81328.0,0.288373]
[1741905932891,0.42894182,81329.0,81328.0,0.206673]
[1741905933899,0.4096689,81329.0,81328.0,0.206673]
[1741905936819,0.42894096,81329.0,81328.0,0.206673]
[1741905937433,0.4096689,81329.0,81328.0,0.18740097]
[1741905938448,0.4096689,81329.0,81328.0,0.19969597]
[1741905940127,0.4096689,81329.0,81328.0,0.20003397]
[1741905940811,0.42894085,81329.0,81328.0,0.20003397]
[1741905943588,0.4096689,81329.0,81328.0,0.20003397]
[1741905946684,4.6e-07,81337.0,81336.0,0.682487]
[1741905948472,4.6e-07,81337.0,81336.0,0.688487]
[1741905948666,4.6e-07,81337.0,81336.0,0.682487]
[1741905950337,4.6e-07,81337.0,81336.0,0.694487]
[1741905951797,4.6e-07,81337.0,81336.0,0.694825]
[1741905952208,4.6e-07,81337.0,81336.0,0.71991897]
[1741905956993,4.6e-07,81337.0,81336.0,0.86071897]
[1741905957617,0.01926881,81337.0,81336.0,0.86071897]
[1741905960577,4.6e-07,81337.0,81336.0,0.86071897]
[1741905960989,0.01926904,81337.0,81336.0,0.86071897]
[1741905963043,0.01926904,81337.0,81336.0,2.36071897]
[1741905963600,4.6e-07,81337.0,81336.0,2.36071897]
[1741905966020,4.6e-07,81337.0,81336.0,0.86071897]
[1741905966419,4.6e-07,81337.0,81336.0,2.36071897]
[1741905966616,0.01926844,81337.0,81336.0,2.36071897]
[1741905967166,4.4e-07,81337.0,81336.0,2.36071897]
[1741905967379,0.4095,81348.0,81347.0,0.341053]
[1741905967926,0.4095,81348.0,81347.0,0.258153]
[1741905968947,0.09162287,81366.0,81364.0,0.245808]
[1741905969286,0.0794,81366.0,81365.0,0.01229]
[1741905969431,0.0794,81366.0,81365.0,0.01049]
[1741905970249,0.0794,81366.0,81365.0,0.01090245]
[1741905970473,0.0744,81366.0,81365.0,0.01090245]
[1741905971208,0.0754,81366.0,81365.0,0.01090245]
[1741905971415,0.0754,81366.0,81365.0,0.00910245]
[1741905972296,0.001,81366.0,81365.0,0.00910245]
[1741905973774,0.001,81366.0,81365.0,0.00730245]
[1741905975677,0.001169,81366.0,81365.0,0.00730245]
[1741905975853,0.00675326,81366.0,81365.0,0.00730245]
[1741905976493,0.00675326,81366.0,81365.0,0.00550245]
[1741905977122,0.02601889,81366.0,81365.0,0.00550245]
[1741905982640,0.03830889,81366.0,81365.0,0.00041245]
[1741905983237,0.245805,81365.0,81360.0,0.38519045]
[1741905983436,0.245805,81365.0,81360.0,0.13978546]
[1741905984321,0.245805,81365.0,81360.0,0.38560446]
[1741905984518,0.245805,81365.0,81360.0,0.39789546]
[1741905984742,0.245805,81365.0,81360.0,0.25852301]
[1741905984976,0.245805,81365.0,81361.0,0.258105]
[1741905985176,0.245805,81365.0,81361.0,0.01229]
[1741905985678,0.245812,81363.0,81360.0,0.00041301]
[1741905986061,0.245805,81365.0,81359.0,0.25672601]
[1741905986669,0.42876652,81364.0,81360.0,0.012291]
[1741905987069,0.42876652,81364.0,81360.0,0.245819]
[1741905987468,0.42876652,81364.0,81360.0,0.25811]
[1741905987668,0.42876652,81364.0,81360.0,0.258448]
[1741905988440,0.67457752,81364.0,81360.0,0.001338]
[1741905988672,0.01229,81362.0,81360.0,0.001338]
[1741905988899,0.245818,81361.0,81360.0,0.001338]
[1741905989094,0.245818,81361.0,81360.0,0.000338]
[1741905990038,0.245818,81361.0,81360.0,0.001338]
[1741905990270,0.17473539,81363.0,81360.0,0.001338]
[1741905990805,0.42876652,81364.0,81360.0,0.001338]
[1741905991208,0.245817,81362.0,81360.0,0.001338]
[1741905991412,0.245817,81362.0,81360.0,0.000338]
[1741905991607,0.245817,81362.0,81356.0,0.22658143]
[1741905991767,0.245817,81362.0,81356.0,0.00041401]
[1741905991971,0.245817,81362.0,81360.0,0.001]
[1741905992369,0.4095,81361.0,81360.0,0.001]
[1741905992958,0.4095,81361.0,81359.0,0.258112]
[1741905993159,0.4095,81361.0,81359.0,0.256412]
[1741905993399,0.4095,81361.0,81360.0,0.001]
[1741905994587,0.4095,81361.0,81359.0,0.256412]
[1741905994790,0.4095,81361.0,81359.0,0.009691]
[1741905995032,0.4095,81361.0,81359.0,0.009791]
[1741905995687,0.4095,81361.0,81359.0,0.255612]
[1741905995904,0.4095,81361.0,81359.0,0.001]
[1741905996650,0.4095,81361.0,81358.0,0.258115]
[1741905996875,0.42876681,81361.0,81358.0,0.258115]
[1741905997315,0.42876681,81361.0,81359.0,0.012291]
[1741905997512,0.42876681,81361.0,81359.0,0.258112]
[1741905998419,0.42876681,81361.0,81359.0,0.256312]
[1741905998873,0.42876681,81361.0,81359.0,0.257312]
[1741905999080,0.42876681,81361.0,81359.0,0.011491]
[1741905999419,0.42876681,81361.0,81359.0,0.257312]
[1741905999613,0.42876681,81361.0,81360.0,0.012291]
[1741906000778,0.42876681,81361.0,81360.0,0.010491]
[1741906001819,0.42876681,81361.0,81360.0,0.011491]
[1741906002519,0.42876681,81361.0,81360.0,0.009691]
[1741906004645,0.4095,81361.0,81360.0,0.009691]
[1741906006241,0.4095,81361.0,81360.0,0.001]
[1741906006841,0.4095,81361.0,81360.0,0.259112]
[1741906007640,0.42876667,81361.0,81360.0,0.259112]
[1741906008826,0.42876667,81361.0,81360.0,0.236112]
[1741906009581,0.42876667,81361.0,81360.0,0.234312]
[1741906011476,0.42876667,81361.0,81360.0,0.232512]
[1741906013128,0.42876667,81361.0,81360.0,0.230712]
[1741906013265,0.42876667,81361.0,81360.0,0.23105]
[1741906013665,0.42893567,81361.0,81360.0,0.23105]
[1741906013866,0.2412666,81361.0,81360.0,0.23105]
[1741906015717,0.2412666,81361.0,81360.0,0.000338]
[1741906016878,0.26053335,81361.0,81360.0,0.000338]
[1741906017311,0.26053335,81361.0,81360.0,0.012629]
[1741906020508,0.43871179,81361.0,81360.0,0.012629]
[1741906022087,0.43871179,81361.0,81360.0,0.010829]
[1741906023996,0.41944504,81361.0,81360.0,0.009029]
[1741906026029,0.41944504,81361.0,81360.0,0.009367]
[1741906026721,0.41944504,81361.0,81360.0,0.007567]
[1741906026944,0.43871157,81361.0,81360.0,0.007567]
[1741906034442,0.43871157,81361.0,81360.0,0.148287]
[1741906038697,0.43871157,81361.0,81360.0,0.146487]
[1741906039426,0.43871157,81361.0,81360.0,0.224287]
[1741906039639,0.41944504,81361.0,81360.0,0.270487]
[1741906041411,0.41944504,81361.0,81360.0,0.271487]
[1741906041958,0.41944504,81361.0,81360.0,0.270487]
[1741906042145,0.41944504,81361.0,81360.0,0.274487]
[1741906042876,0.41944504,81361.0,81360.0,0.278487]
[1741906045556,0.000169,81366.0,81365.0,0.558095]
[1741906045765,0.000169,81366.0,81365.0,0.685795]
[1741906046446,0.000169,81366.0,81365.0,0.69845059]
[1741906047446,0.0031606,81398.0,81397.0,0.012285]
[1741906047672,0.01572292,81398.0,81397.0,0.153005]
[1741906047888,0.01572292,81398.0,81397.0,0.151205]
[1741906048127,0.02241733,81398.0,81397.0,0.151205]
[1741906048329,0.02241733,81398.0,81397.0,0.13892]
[1741906048806,0.02241733,81398.0,81397.0,0.13933401]
[1741906049070,0.02241733,81398.0,81397.0,0.00041401]
[1741906049538,0.0347384,81398.0,81397.0,0.00041401]
[1741906050196,0.0347384,81398.0,81397.0,0.01269901]
[1741906050432,0.0347384,81398.0,81397.0,0.00041401]
[1741906050654,0.0347384,81398.0,81397.0,0.24612301]
[1741906050842,0.02241733,81398.0,81397.0,0.00041401]
[1741906050984,0.43291733,81398.0,81397.0,0.00041401]
[1741906051218,0.43291733,81398.0,81397.0,0.01269901]
[1741906051425,0.43291733,81398.0,81397.0,0.00041401]
[1741906052398,0.43281591,81398.0,81397.0,0.00041401]
[1741906053788,0.56388815,81398.0,81397.0,0.00041401]
[1741906054021,0.90590896,81398.0,81397.0,0.00041401]
[1741906054743,1.40590896,81398.0,81397.0,0.00041401]
[1741906054975,0.012288,81379.0,81374.0,0.26808065]
[1741906055173,0.4095,81378.0,81374.0,0.26849479]
[1741906055604,0.4095,81378.0,81374.0,0.25848014]
[1741906055971,0.4095,81378.0,81374.0,0.00041414]
[1741906056179,0.57260385,81375.0,81374.0,0.00041414]
[1741906056564,0.59186814,81375.0,81374.0,0.00041414]
[1741906056762,0.59186814,81375.0,81374.0,0.00241414]
[1741906056966,0.71182903,81375.0,81374.0,0.00041414]
[1741906057702,0.24581,81364.0,81357.0,0.01124314]
[1741906057881,0.4095,81363.0,81357.0,0.01165776]
[1741906058087,0.4220629,81363.0,81357.0,0.01165776]
[1741906058313,0.4220629,81363.0,81358.0,0.012291]
[1741906058487,0.01926591,81362.0,81358.0,0.258118]
[1741906059409,0.01926591,81362.0,81358.0,0.256318]
[1741906059616,0.01926591,81362.0,81360.0,0.25811]
[1741906059832,0.4095,81363.0,81360.0,0.258111]
[1741906060043,0.4095,81363.0,81358.0,0.257318]
[1741906060229,0.42194371,81363.0,81358.0,0.001]
[1741906060764,0.245817,81362.0,81358.0,0.001]
[1741906060966,0.245827,81358.0,81357.0,0.00041462]
[1741906061106,0.012293,81346.0,81341.0,0.0464]
[1741906061314,0.01270699,81346.0,81341.0,0.14356]
[1741906061516,0.245866,81345.0,81335.0,0.012294]
[1741906061854,0.245874,81343.0,81337.0,0.258184]
[1741906062052,0.258167,81343.0,81338.0,0.012294]
[1741906062250,0.258167,81343.0,81334.0,0.25819]
[1741906062251,0.245879,81341.0,81334.0,0.25819]
[1741906062453,0.25857599,81346.0,81340.0,0.012294]
[1741906062632,0.25857599,81346.0,81340.0,0.258175]
[1741906063013,0.25857599,81346.0,81336.0,0.012632]
[1741906063014,0.24589,81338.0,81336.0,0.000338]
[1741906063303,0.245881,81341.0,81336.0,0.000338]
[1741906063502,0.012293,81343.0,81336.0,0.258525]
[1741906063703,0.258168,81343.0,81336.0,0.258525]
[1741906064240,0.4095,81345.0,81343.0,0.245869]
[1741906064449,0.4095,81345.0,81344.0,0.012293]
[1741906064689,0.4095,81345.0,81344.0,0.010293]
[1741906064883,0.4095,81345.0,81344.0,0.009293]
[1741906066425,0.4105,81345.0,81344.0,0.009293]
[1741906067007,0.4095,81345.0,81344.0,0.009293]
[1741906067209,0.4105,81345.0,81344.0,0.009293]
[1741906067369,0.4095,81345.0,81344.0,0.009293]
[1741906068217,0.15111803,81346.0,81345.0,0.258159]
[1741906069283,0.17038698,81346.0,81345.0,0.258159]
[1741906069804,0.17038698,81346.0,81345.0,0.256359]
[1741906070228,0.17038698,81346.0,81342.0,0.258165]
[1741906070430,0.17038698,81346.0,81343.0,0.258163]
[1741906070632,0.17038698,81346.0,81343.0,0.012293]
[1741906071084,0.17038698,81346.0,81342.0,0.012293]
[1741906071595,0.17038698,81346.0,81343.0,0.245872]
[1741906072017,0.17038698,81346.0,81343.0,0.258165]
[1741906072240,0.17038698,81346.0,81344.0,0.0003382]
[1741906072451,0.17055608,81346.0,81345.0,0.012293]
[1741906072801,0.17055608,81346.0,81344.0,0.0003382]
[1741906073005,0.17055608,81346.0,81345.0,0.258159]
[1741906073677,0.15128713,81346.0,81345.0,0.258159]
[1741906076910,0.17055569,81346.0,81345.0,0.258159]
[1741906077575,0.15128713,81346.0,81345.0,0.23889046]
[1741906078403,0.15128713,81346.0,81345.0,0.23709046]
[1741906081594,0.15128713,81346.0,81345.0,0.23529046]
[1741906085543,0.15128713,81346.0,81345.0,0.35829046]
[1741906085918,0.15128713,81346.0,81345.0,0.39495565]
[1741906086320,0.15128713,81346.0,81345.0,0.39895565]
[1741906086829,0.15128713,81346.0,81345.0,0.39495565]
[1741906087043,0.15128713,81346.0,81345.0,0.39895565]
[1741906087258,0.00058309,81346.0,81345.0,0.39895565]
[1741906087422,0.00058309,81346.0,81345.0,0.40295565]
[1741906087621,0.03826702,81346.0,81345.0,0.39895565]
[1741906087963,0.05753155,81346.0,81345.0,0.40495565]
[1741906088414,0.05753155,81346.0,81345.0,0.40095565]
[1741906088799,5.5e-07,81346.0,81345.0,0.70695565]
[1741906089006,0.01921827,81352.0,81345.0,0.70695565]
[1741906089007,0.01921827,81352.0,81351.0,0.33394]
[1741906089931,0.01921827,81366.0,81365.0,0.258095]
[1741906090131,0.01921827,81366.0,81365.0,0.401255]
[1741906090607,0.01229,81362.0,81354.0,0.258127]
[1741906090809,0.245811,81363.0,81358.0,0.258115]
[1741906091189,0.245811,81363.0,81355.0,0.14316]
[1741906091190,0.245818,81361.0,81355.0,0.401285]
[1741906091555,0.01229,81364.0,81356.0,0.258122]
[1741906091773,0.245804,81366.0,81361.0,0.245817]
[1741906091973,0.245808,81365.0,81360.0,0.012291]
[1741906092402,0.012289,81368.0,81356.0,0.155371]
[1741906092403,0.01229,81366.0,81356.0,0.14308]
[1741906092610,0.01229,81363.0,81356.0,0.14308]
[1741906092808,0.245814,81362.0,81356.0,0.14278]
[1741906093130,0.245814,81362.0,81356.0,0.14238]
[1741906093331,0.245814,81362.0,81361.0,0.002]
[1741906093553,0.26507631,81364.0,81361.0,0.002]
[1741906093956,0.245811,81364.0,81358.0,0.258115]
[1741906094187,0.245817,81362.0,81356.0,0.14438]
[1741906094391,0.245817,81362.0,81356.0,0.14238]
[1741906094592,0.245814,81363.0,81361.0,0.001]
[1741906094997,0.15070404,81362.0,81357.0,0.258121]
[1741906095196,0.15070404,81362.0,81358.0,0.246824]
[1741906095790,0.15070404,81362.0,81358.0,0.259115]
[1741906096484,0.15070404,81362.0,81358.0,0.258115]
[1741906096767,0.15070404,81362.0,81361.0,0.002]
[1741906096929,0.16996994,81362.0,81361.0,0.002]
[1741906097125,0.245818,81361.0,81358.0,0.003]
[1741906097330,0.245822,81360.0,81358.0,0.003]
[1741906097532,0.245822,81360.0,81358.0,0.004]
[1741906097896,0.258113,81360.0,81358.0,0.003]
[1741906098109,0.012291,81359.0,81358.0,0.003]
[1741906098313,0.245827,81358.0,81356.0,0.14304]
[1741906099578,0.01843523,81357.0,81356.0,0.14304]
[1741906099852,0.01843523,81357.0,81356.0,0.11530401]
[1741906100677,0.03102434,81357.0,81356.0,0.11530401]
[1741906100877,0.18172838,81357.0,81356.0,0.11530401]
[1741906101192,0.16222742,81357.0,81356.0,0.11530401]
[1741906102035,0.16222742,81357.0,81354.0,0.245837]
[1741906102240,0.16222742,81357.0,81354.0,0.258128]
[1741906103578,0.16222742,81357.0,81355.0,0.245834]
[1741906103791,0.16222742,81357.0,81356.0,0.011591]
[1741906103989,0.15070404,81357.0,81356.0,0.011591]
[1741906105345,0.18067073,81357.0,81356.0,0.011591]
[1741906105698,0.19993688,81357.0,81356.0,0.011591]
[1741906105907,0.19993688,81357.0,81356.0,0.138291]
[1741906106106,0.19993688,81357.0,81356.0,0.15075631]
[1741906106327,0.16997019,81357.0,81356.0,0.15075631]
[1741906106813,0.18149477,81357.0,81356.0,0.15075631]
[1741906107141,0.18149477,81357.0,81356.0,0.138291]
[1741906107756,0.18149477,81357.0,81356.0,0.142291]
[1741906108256,0.02077135,81357.0,81356.0,0.147291]
[1741906108455,0.01152458,81357.0,81356.0,0.147291]
[1741906109078,0.01152458,81357.0,81356.0,0.14851997]
[1741906109576,0.01152458,81357.0,81356.0,0.14885817]
[1741906112181,0.01152458,81357.0,81356.0,0.1476292]
[1741906112542,0.01152458,81357.0,81356.0,0.1474602]
[1741906114057,0.01152458,81357.0,81356.0,0.14868918]
[1741906114981,0.01152458,81357.0,81356.0,0.1474602]
[1741906116977,0.01152458,81357.0,81356.0,0.14868918]
[1741906117583,0.0001691,81363.0,81362.0,0.09259]
[1741906117762,0.0001691,81363.0,81362.0,0.09381889]
[1741906118519,0.0001691,81363.0,81362.0,0.33963289]
[1741906118723,0.0001691,81363.0,81362.0,0.338404]
[1741906119133,0.01168721,81363.0,81362.0,0.341404]
[1741906119344,0.01168721,81363.0,81362.0,0.387004]
[1741906119669,2.1e-07,81363.0,81362.0,0.387004]
[1741906119874,2.1e-07,81363.0,81362.0,0.390004]
[1741906120645,2.1e-07,81363.0,81362.0,0.387004]
[1741906120845,0.4095,81379.0,81378.0,0.258054]
[1741906121041,0.4095,81379.0,81378.0,0.400414]
[1741906122322,0.4095,81379.0,81378.0,0.40045512]
[1741906123365,0.4095,81379.0,81378.0,0.40445512]
[1741906123556,0.4095,81397.0,81396.0,0.257997]
[1741906127215,0.41272818,81398.0,81397.0,0.012285]
[1741906128233,0.41272818,81398.0,81397.0,0.154205]
[1741906128432,0.41272818,81398.0,81397.0,0.156205]
[1741906129466,0.41272818,81398.0,81397.0,0.14392]
[1741906129676,0.41272818,81398.0,81397.0,0.159205]
[1741906130726,0.43110598,81398.0,81397.0,0.156205]
[1741906131283,0.43110598,81398.0,81397.0,0.154205]
[1741906132116,0.44259402,81398.0,81397.0,0.154205]
[1741906132592,0.44259402,81398.0,81397.0,0.012285]
[1741906132811,0.44259402,81398.0,81394.0,0.245715]
[1741906133034,0.44259402,81398.0,81393.0,0.012286]
[1741906133712,0.44259402,81398.0,81394.0,0.012285]
[1741906134532,0.01914673,81395.0,81394.0,0.012285]
[1741906135039,0.245721,81393.0,81388.0,0.258019]
[1741906135193,0.245721,81393.0,81388.0,0.012286]
[1741906135537,0.245721,81393.0,81382.0,0.258038]
[1741906135538,0.012286,81390.0,81382.0,0.258038]
[1741906135710,0.245727,81391.0,81384.0,0.012287]
[1741906136116,0.70424257,81392.0,81386.0,0.245742]
[1741906137161,0.70424257,81392.0,81390.0,0.24573]
[1741906137162,0.45851257,81392.0,81390.0,0.24573]
[1741906137383,0.02986584,81391.0,81390.0,0.21800449]
[1741906137514,0.02986584,81391.0,81390.0,0.23029049]
[1741906138467,0.04912528,81391.0,81390.0,0.23029049]
[1741906139016,0.45862528,81391.0,81387.0,0.258022]
[1741906139689,0.45862528,81391.0,81387.0,0.012286]
[1741906140362,0.01918221,81388.0,81387.0,0.012286]
[1741906141081,0.01918221,81388.0,81360.0,0.78064]
[1741906141082,0.245748,81384.0,81379.0,0.14156]
[1741906141197,0.245754,81382.0,81379.0,0.14156]
[1741906141956,0.2650154,81382.0,81378.0,4.112e-05]
[1741906142459,0.02986584,81381.0,81378.0,4.112e-05]
[1741906142632,0.02986584,81381.0,81378.0,0.25809312]
[1741906143404,0.02986584,81381.0,81380.0,0.012288]
[1741906145355,0.02986584,81381.0,81378.0,4.112e-05]
[1741906145557,0.258051,81379.0,81378.0,4.112e-05]
[1741906145757,0.66936633,81379.0,81378.0,4.112e-05]
[1741906145959,0.74456633,81379.0,81378.0,4.112e-05]
[1741906146169,0.012289,81370.0,81360.0,0.012291]
[1741906146392,0.4095,81369.0,81361.0,0.01229]
[1741906146636,0.4095,81369.0,81362.0,0.01229]
[1741906146970,0.01926518,81368.0,81362.0,0.01229]
[1741906147171,0.01926518,81368.0,81362.0,0.258104]
[1741906147172,0.26506318,81368.0,81362.0,0.258104]
[1741906147711,0.26506318,81368.0,81362.0,0.260104]
[1741906147938,0.02986584,81367.0,81364.0,0.245808]
[1741906149319,0.02986584,81367.0,81363.0,0.01229]
[1741906149594,0.02986584,81366.0,81364.0,0.002]
[1741906150194,0.02986584,81366.0,81364.0,0.0013]
[1741906150395,0.02986584,81366.0,81364.0,0.249106]
[1741906150633,0.02986584,81366.0,81365.0,0.01229]
[1741906151152,0.01926518,81368.0,81365.0,0.01229]
[1741906151749,0.32876518,81369.0,81365.0,0.01229]